[Event "88th Tata Steel Masters 2026"]
[White "Bluebaum,Matthias"]
[Black "Sindarov,Javokhir"]
[Site "Wijk aan Zee"]
[Round "4.7"]
[Annotator "TA"]
[Result "0-1"]
[Date "2026.01.20"]
[WhiteElo "2679"]
[BlackElo "2726"]
[PlyCount "54"]
[TimeControl "60"]

{[%evp 11,53,27,41,35,45,26,34,32,37,29,41,40,54,50,50,60,55,55,55,0,0,0,77,-22,0,-11,0,0,0,-10,0,0,0,0,0,0,0,-247,-224,-781,-819,-819,0,-812]} 1. d4 {[%emt 0:0:0]} Nf6 {[%emt 0:0:0]} 2. c4 {[%emt 0:0:0]} g6 {[%emt 0:0:0]} 3. Nc3 {[%emt 0:0:0]} Bg7 {[%emt 0:0:0]} 4. e4 {[%emt 0:0:0]} d6 {[%emt 0:0:0]} 5. Nf3 {[%emt 0:0:0]} O-O {[%emt 0:0:0]} 6. h3 {[%emt 0:0:0]} a5 {[%emt 0:0:0]} 7. Be3 {[%emt 0:0:0] E90: King's Indian: Classical: Early deviations and 6 h3.} Na6 {[%emt 0:0:0][%cal Ye7e5] 7...a4 might become the main line.} 8. Bd3 {[%emt 0:0:0]} e5 {[%emt 0:0:12]} 9. O-O $146 {[%emt 0:0:0] White is slightly better.} ({Predecessor:} 9. d5 Nh5 10. O-O Nf4 11. Kh2 Nxd3 12. Qxd3 f5 13. b3 f4 14. Bd2 g5 15. Ng1 {0-1 Bryakin,M (2428)-Naroditsky,D (2610) Titled Tuesday intern op 2nd July blitz 2019 (10)} )exd4 {[%emt 0:14:8]} 10. Nxd4 {[%emt 0:0:0]} Nc5 {[%emt 0:0:39]} 11. Bc2 {[%emt 0:7:11]} Re8 {[%emt 0:7:30]} 12. f3 {[%emt 0:0:37]} c6 {[%emt 0:0:48]} 13. Qd2 {[%emt 0:3:35]} a4 {[%emt 0:17:10]} 14. Rad1 {[%emt 0:11:21]} Qa5 {[%emt 0:2:55]} 15. Bf4 {[%emt 0:7:27]} (15. Nde2 $14 )Ne6 $11 {[%emt 0:8:12]} 16. Be3 {[%emt 0:3:42]} (16. Nxa4 $2 Qxd2 17. Rxd2 Nxf4 $19 )(16. Bxd6 $6 Nxd4 (16... Nxe4 17. fxe4 Bxd4+ 18. Kh1 $11 )17. e5 (17. Qxd4 $2 Nxe4 18. Nxe4 Bxd4+ $19 )Nd7 (17... Nxc2 18. exf6 Bxf6 19. Qxc2 $15 )18. Qxd4 Nxe5 $17 )Nh5 {[%emt 0:17:39]} (16... Nc5 $11 )17. Nxa4 {[%emt 0:12:37]} ({Better is} 17. Nde2 $16 )Nxd4 {[%emt 0:4:46] Black sacrificed a pawn} 18. Bxd4 {[%emt 0:5:36]} Bxd4+ {[%emt 0:2:48]} 19. Qxd4 {[%emt 0:0:32]} Qg5 {[%emt 0:1:8]} 20. Rd2 {[%emt 0:25:26]} (20. Qxd6 $2 Bxh3 (20... Nf4 21. g4 $11 )21. Qh2 Nf4 $17 )Nf4 {[%emt 0:4:12]} 21. Kh1 $1 {[%emt 0:2:42][%cal Yd4f2]} (21. Qxd6 $2 Bxh3 (21... Nxh3+ 22. Kh2 $11 )22. Rff2 Be6 $19 )Qh6 {[%emt 0:4:26]} 22. Qxd6 {[%emt 0:6:35]} Bxh3 {[%emt 0:3:42]} 23. gxh3 {[%emt 0:0:41]} Re6 {[%emt 0:1:25]} 24. Qc5 $2 {[%emt 0:5:30] [#]} (24. Qd7 $11 {and White has nothing to worry.} Qxh3+ (24... Nxh3 $2 {perishes.} 25. Rh2 $18 )25. Kg1 Qg3+ 26. Kh1 Qh3+ )Nd3 $19 {[%emt 0:7:28]} 25. Rxd3 {[%emt 0:0:35]} (25. Bxd3 Qxd2 26. Qd4 (26. Qa3 $2 Rd8 $19 ))Qxh3+ {[%emt 0:0:45]} 26. Kg1 {[%emt 0:0:39]} Qg3+ {[%emt 0:0:37]} 27. Kh1 {[%emt 0:0:32]} g5 {[%emt 0:1:22] Weighted Error Value: White=0.70/Black=0.10 (very precise)   Loses game:     	White=1     	---        Mistake:       	White=3     	Black=1      OK:         	White=6     	Black=5      Strong:       	White=1     	---} 0-1

[Event "88th Tata Steel Masters 2026"]
[White "Sindarov,Javokhir"]
[Black "Erdogmus,Yagiz Kaan"]
[Site "Wijk aan Zee"]
[Round "5.1"]
[Annotator "TA"]
[Result "1-0"]
[Date "2026.01.21"]
[WhiteElo "2726"]
[BlackElo "2658"]
[PlyCount "147"]
[TimeControl "60"]

{[%evp 12,147,21,5,25,10,11,13,20,26,18,7,5,20,48,48,43,50,45,37,35,39,47,46,49,39,35,35,35,16,37,33,45,54,93,41,45,47,45,46,42,42,41,35,37,37,31,37,39,31,23,30,39,40,342,341,345,338,344,327,333,336,312,235,194,216,210,87,93,88,105,105,104,105,90,85,143,152,135,135,121,108,133,131,214,181,169,141,140,211,204,140,141,140,140,141,140,140,140,134,145,127,132,126,115,74,68,8,8,8,8,8,8,8,250,237,212,212,214,172,212,212,212,172,2679,237,4586,2314,4614,2433,6450,5814,7062,6549,4629,4629,29984,29985]} 1. e4 {[%emt 0:0:0]} e5 {[%emt 0:0:0]} 2. Bc4 {[%emt 0:0:0]} Nf6 {[%emt 0:0:0]} 3. d3 {[%emt 0:0:0]} c6 {[%emt 0:0:0]} 4. Nf3 {[%emt 0:0:0]} d5 {[%emt 0:0:0]} 5. Bb3 {[%emt 0:0:0]} Bb4+ {[%emt 0:0:0]} 6. Bd2 {[%emt 0:0:0]} Bxd2+ {[%emt 0:0:0]} 7. Nbxd2 {[%emt 0:4:57]} Nbd7 {[%emt 0:0:0] C24: Bishop's Opening: 2...Nf6.} 8. O-O {[%emt 0:0:0]} O-O {[%emt 0:0:0]} 9. Re1 {[%emt 0:0:0]} Re8 {[%emt 0:0:0] The position is equal.} 10. d4 {[%emt 0:0:0]} exd4 {[%emt 0:0:11]} 11. exd5 {[%emt 0:0:0]} Rxe1+ {[%emt 0:8:35]} 12. Qxe1 {[%emt 0:0:0]} Nxd5 {[%emt 0:0:49]} 13. Bxd5 {[%emt 0:7:18]} cxd5 {[%emt 0:0:31]} 14. Nxd4 {[%emt 0:1:29]} Nf6 {[%emt 0:0:58]} 15. Nf1 $146 {[%emt 0:11:10] Excellent horsemanship.} ({Predecessor:} 15. N2b3 Bd7 16. Qb4 a5 17. Qxb7 a4 18. Nc5 Rb8 19. Qa7 Ra8 20. Qb7 Rb8 21. Qa6 Rxb2 {1-0 Mirzoev,E (2474)-Schneider,I (2479) EU-ch Rapid Katowice 2021 (7)} )Qb6 {[%emt 0:4:27][%csl Yb2,Yd4]} 16. Nb3 {[%emt 0:1:39]} a5 {[%emt 0:33:6][%cal Ya7a5,Ya5a4][%mdl 32]} 17. Qe3 {[%emt 0:2:54]} Qb5 {[%emt 0:7:54]} 18. Qd4 {[%emt 0:7:34]} a4 {[%emt 0:6:0]} 19. Nbd2 {[%emt 0:1:41]} Be6 {[%emt 0:6:42]} 20. a3 {[%emt 0:7:49]} Rc8 {[%emt 0:10:1]} 21. Ne3 {[%emt 0:1:12]} h5 {[%emt 0:2:38]} 22. h3 {[%emt 0:2:13]} Ne4 {[%emt 0:2:39]} 23. Rd1 {[%emt 0:8:36]} (23. Nf3 $16 )Nd6 $14 {[%emt 0:2:16]} 24. Qe5 {[%emt 0:4:14][%csl Yd6,Yh5] Against Nf5} Qb6 {[%emt 0:2:2]} 25. Nf3 {[%emt 0:5:30]} (25. Qxh5 d4 26. Nd5 Qc5 $15 (26... Bxd5 27. Qxd5 Qxb2 28. Nf3 $14 ))Nc4 {[%emt 0:1:47]} 26. Nxc4 {[%emt 0:0:58]} (26. Qxh5 Nxe3 (26... Qxb2 27. Nxd5 Bxd5 28. Qxd5 $14 )27. fxe3 Qxe3+ 28. Kh1 g6 $15 (28... Rxc2 29. Ng5 $15 ))Rxc4 {[%emt 0:0:34]} 27. c3 {[%emt 0:13:11]} Qxb2 {[%emt 0:7:35]} 28. Ng5 {[%emt 0:1:45]} Qb6 {[%emt 0:2:45]} 29. Rxd5 {[%emt 0:2:4]} Rc8 {[%emt 0:1:13]} 30. Rd4 $40 {[%emt 0:10:7][%mdl 128] Black needs to defend precisely.} Qb1+ {[%emt 0:2:11]} 31. Kh2 {[%emt 0:0:38]} Qf5 {[%emt 0:0:33]} 32. Qe3 {[%emt 0:0:36]} Bd5 $2 {[%emt 0:3:16][%mdl 8192] [#]} (32... Qf6 $14 )33. g4 $18 {[%emt 0:5:7]} (33. Rxa4 Bc6 (33... f6 34. Nf3 $11 )34. Rd4 Re8 $14 )hxg4 {[%emt 0:1:28]} 34. hxg4 {[%emt 0:0:36]} Qd7 {[%emt 0:0:31]} 35. Qd3 {[%emt 0:2:59]} Qc7+ {[%emt 0:2:10]} 36. Kg1 {[%emt 0:2:46]} Be6 {[%emt 0:0:31]} 37. c4 {[%emt 0:9:3]} (37. Rxa4 Bc4 38. Qh7+ Kf8 $11 )Kf8 {[%emt 0:1:32][%cal Re6c4]} 38. Nxe6+ {[%emt 0:0:39]} fxe6 {[%emt 0:0:31][%mdl 4096] Endgame KQR-KQR} 39. Rd7 {[%emt 0:0:31]} (39. Qh7 $18 )Qf4 $16 {[%emt 0:0:57]} 40. Qg6 {[%emt 0:0:0]} (40. Rxb7 Qxg4+ 41. Kh1 Kg8 $11 (41... Rxc4 42. Qd8# )(41... Qxc4 42. Qf3+ ))Qf6 {[%emt 0:0:0]} 41. Qh7 {[%emt 0:20:56][%cal Rh7h8] [#]} Qh6 {[%emt 0:23:34]} 42. Qe4 {[%emt 0:0:18]} Kg8 {[%emt 0:16:38]} 43. Kg2 {[%emt 0:5:8]} (43. Qxb7 $6 Rf8 $11 )b6 {[%emt 0:2:13]} (43... Rf8 $142 )44. Rd6 {[%emt 0:10:38][%csl Yb6,Ye6]} Rf8 {[%emt 0:0:19]} 45. Rxb6 {[%emt 0:3:45] Active counter play!} ({Much less strong is} 45. Rxe6 Qd2 46. Qe3 (46. Rxb6 $2 {too greedy.} Qxf2+ 47. Kh1 Qxb6 $19 )Qxe3 47. fxe3 (47. Rxe3 Rf4 $11 )Rc8 $14 )Rf4 {[%emt 0:8:1]} 46. Qe2 {[%emt 0:0:49]} (46. Qxe6+ Qxe6 47. Rxe6 Rxg4+ 48. Kf3 Rxc4 $11 )Rd4 {[%emt 0:0:25]} 47. c5 {[%emt 0:4:52]} (47. Qxe6+ Qxe6 48. Rxe6 Rxg4+ 49. Kf3 Rxc4 $11 )Qg5 {[%emt 0:1:7]} (47... Kf7 $16 48. Rd6 Qf6 )48. Qxe6+ $18 {[%emt 0:1:27]} ({Worse is} 48. Rxe6 Rxg4+ )Kh7 {[%emt 0:0:2]} 49. f3 {[%emt 0:3:24]} Qd2+ {[%emt 0:2:6]} 50. Kh3 {[%emt 0:0:6]} Qf4 {[%emt 0:0:30]} 51. Qg6+ {[%emt 0:2:13]} Kg8 {[%emt 0:0:14]} 52. Qe8+ {[%emt 0:2:5]} Kh7 {[%emt 0:0:2]} 53. Qh5+ {[%emt 0:0:13]} Kg8 {[%emt 0:0:1]} 54. Qf5 {[%emt 0:0:6]} Qxf5 {[%emt 0:0:18]} 55. gxf5 $16 {[%emt 0:0:4] KR-KR. White is two pawns up.} Rc4 {[%emt 0:4:50]} 56. c6 {[%emt 0:2:5]} Kf7 {[%emt 0:0:14]} 57. Ra6 {[%emt 0:0:57]} Kf6 {[%emt 0:0:52]} 58. Ra5 {[%emt 0:0:35]} Rxc6 {[%emt 0:1:1]} 59. Kg4 {[%emt 0:0:2]} (59. Rxa4 $14 Kxf5 60. Kg3 )Rc4+ $11 {[%emt 0:0:14]} 60. f4 {[%emt 0:0:3]} Rd4 {[%emt 0:0:50]} 61. Ra6+ {[%emt 0:15:3]} Kf7 {[%emt 0:15:19]} 62. Kg5 {[%emt 0:0:4]} Rd1 $2 {[%emt 0:0:43]} (62... Ke7 $11 )63. Ra7+ $18 {[%emt 0:0:9]} (63. Rxa4 Rg1+ 64. Kh4 Kf6 $16 )Kf8 {[%emt 0:0:1]} 64. Rxa4 {[%emt 0:1:27]} Rg1+ {[%emt 0:0:1]} 65. Kh5 {[%emt 0:0:11]} Kf7 {[%emt 0:0:21]} 66. Ra6 {[%emt 0:0:5]} Rg2 {[%emt 0:1:25]} 67. a4 {[%emt 0:0:9][%cal Ya3a4,Ya4a5,Ya5a6,Ya6a7][%mdl 32]} Rg3 $2 {[%emt 0:0:43]} (67... Rh2+ 68. Kg4 Rg2+ 69. Kf3 Rh2 )68. a5 {[%emt 0:0:3]} Ra3 $2 {[%emt 0:0:29]} (68... Rf3 69. Rb6 Rf1 )69. Ra8 {[%emt 0:0:54]} Kf6 {[%emt 0:0:18]} 70. Kg4 {[%emt 0:0:6]} Kf7 {[%emt 0:0:42]} 71. a6 {[%emt 0:0:13]} Kf6 {[%emt 0:0:9]} 72. a7 {[%emt 0:0:8]} Kf7 {[%emt 0:0:0] Prevents Rf8+} 73. f6 {[%emt 0:1:19]} gxf6 {[%emt 0:0:12]} 74. Rh8 {[%emt 0:0:6] Weighted Error Value: White=0.12 (very precise) /Black=0.14 (very precise)   Loses game:     	---       	Black=2      Mistake:       	White=3     	Black=4      Inaccurate:     	White=3     	Black=3      OK:         	White=8     	Black=5      Best:        	White=1     	---} 1-0

[Event "88th Tata Steel Masters 2026"]
[White "Keymer,Vincent"]
[Black "Aravindh,Chithambaram VR."]
[Site "Wijk aan Zee"]
[Round "5.2"]
[Annotator "TA"]
[Result "1-0"]
[Date "2026.01.21"]
[WhiteElo "2776"]
[BlackElo "2700"]
[PlyCount "71"]
[TimeControl "60"]

{[%evp 12,70,20,21,19,14,27,16,23,20,31,16,33,33,24,9,19,29,27,33,22,23,42,31,113,48,70,58,68,40,33,14,56,61,188,174,158,172,208,208,211,202,228,229,290,289,276,280,293,179,621,621,595,582,550,350,353,342,514,508,906]} 1. Nf3 {[%emt 0:0:0]} Nf6 {[%emt 0:0:0]} 2. c4 {[%emt 0:0:0]} e6 {[%emt 0:0:0]} 3. Nc3 {[%emt 0:0:0]} d5 {[%emt 0:0:0]} 4. d4 {[%emt 0:0:0]} Nbd7 {[%emt 0:0:0]} 5. cxd5 {[%emt 0:0:0]} exd5 {[%emt 0:0:0]} 6. Bf4 {[%emt 0:0:0]} Bb4 {[%emt 0:0:0]} 7. e3 {[%emt 0:1:57]} Ne4 {[%emt 0:0:0] D35: Queen's Gambit Declined: Exchange Variation.} 8. Qc2 {[%emt 0:0:0]} g5 {[%emt 0:0:0]} 9. Be5 {[%emt 0:0:0]} O-O {[%emt 0:0:0] The position is equal.} 10. Bd3 {[%emt 0:0:0]} g4 $146 {[%emt 0:0:0]} ({Predecessor:} 10... Nxe5 11. Nxe5 f6 12. Bxe4 Bxc3+ 13. bxc3 dxe4 14. Nc4 Be6 15. Nd2 f5 16. c4 c6 {1-0 Petrosyan,M (2541)-Harsh,S (2392) New Delhi op 21st 2025 (6)} )11. Bxe4 {[%emt 0:0:34]} dxe4 {[%emt 0:0:0]} 12. Qxe4 {[%emt 0:2:19]} f5 {[%emt 0:0:0] Black sacrificed a pawn} 13. Qd5+ {[%emt 0:2:29]} Rf7 {[%emt 0:0:0]} 14. Nd2 {[%emt 0:12:27]} c6 {[%emt 0:0:0]} 15. Qc4 {[%emt 0:6:2]} Nxe5 {[%emt 0:0:0]} 16. dxe5 {[%emt 0:0:32]} a5 {[%emt 0:0:0]} 17. Rd1 {[%emt 0:8:17]} b5 {[%emt 0:0:56]} (17... Qe7 $14 )18. Qf4 {[%emt 0:6:39]} (18. Qxc6 $16 Bd7 19. Qd5 )Qe7 $14 {[%emt 0:11:33]} 19. Ne2 {[%emt 0:19:57]} Bd7 {[%emt 0:33:32]} 20. a3 {[%emt 0:1:24]} Bc5 {[%emt 0:5:35]} 21. Qg3 {[%emt 0:1:21]} Re8 {[%emt 0:14:6]} 22. f4 {[%emt 0:1:33]} h5 {[%emt 0:13:51] [#] Loses the game.} (22... Rg7 $14 )23. Nf3 $1 $18 {[%emt 0:9:26]} Rg7 {[%emt 0:4:15]} 24. Ng5 {[%emt 0:4:54]} h4 {[%emt 0:11:43]} 25. Qxh4 {[%emt 0:1:13] and Kf2 would now be decisive} Bxe3 {[%emt 0:1:10]} 26. Qg3 {[%emt 0:3:4]} Rxg5 {[%emt 0:7:10]} 27. Qxe3 {[%emt 0:0:0]} (27. fxg5 f4 28. Qh4 (28. Nxf4 Qxe5 29. Ne2 Qe4 $17 )Bf5 $17 )Rh5 {[%emt 0:0:34]} 28. Kf2 {[%emt 0:1:33]} Be6 {[%emt 0:1:3]} 29. h3 {[%emt 0:3:46]} gxh3 {[%emt 0:1:10]} 30. Rd6 {[%emt 0:3:33]} ({Don't take} 30. gxh3 Qh4+ 31. Qg3+ Qxg3+ 32. Nxg3 Rh4 $16 )Rd8 $2 {[%emt 0:2:7] [#]} (30... Qh4+ 31. Qg3+ (31. g3 Qg4 $16 )Qxg3+ 32. Kxg3 Kg7 33. Rxh3 (33. gxh3 $2 Bd5 $18 )Rxh3+ 34. Kxh3 c5 )31. Nd4 {[%emt 0:3:44]} Bd5 {[%emt 0:0:36]} 32. Qg3+ {[%emt 0:4:50]} Kf8 {[%emt 0:0:35]} 33. Rf6+ {[%emt 0:2:45]} Ke8 {[%emt 0:0:35]} 34. Rxh3 {[%emt 0:2:2]} Rxh3 {[%emt 0:0:47]} (34... Qc5 $142 35. Rxh5 (35. Qg6+ Kd7 $14 )Qxd4+ 36. Qe3 Qxb2+ 37. Qe2 Qxe2+ 38. Kxe2 Kd7 39. Rd6+ (39. Rhxf5 $2 Bxg2 40. Rf7+ Ke6 $18 )Kc8 40. Rxd8+ Kxd8 41. Rxf5 Bxg2 42. Rf8+ Ke7 )35. Qxh3 {[%emt 0:0:34]} Qc5 {[%emt 0:0:38]} (35... Kd7 $142 36. Rd6+ Kc8 37. Nxf5 Qc7 38. Ne7+ Kb7 39. Nxd5 cxd5 40. Rxd8 Qxd8 41. Qh7+ Kc6 42. Qg6+ Kc5 )36. Kg3 {[%emt 0:2:31] Weighted Error Value: White=0.21 (precise) /Black=0.73   Missed win:     	White=1     	---        Mistake:       	White=1     	Black=5      Inaccurate:     	White=3     	Black=1      OK:         	White=1     	Black=2      Best:        	---       	Black=1      Strong:       	White=1     	---} 1-0

[Event "88th Tata Steel Masters 2026"]
[White "Praggnanandhaa R"]
[Black "Giri,Anish"]
[Site "Wijk aan Zee"]
[Round "5.3"]
[Annotator "TA"]
[Result "1/2-1/2"]
[Date "2026.01.21"]
[WhiteElo "2758"]
[BlackElo "2760"]
[PlyCount "74"]
[TimeControl "60"]

{[%evp 15,74,0,0,0,0,0,0,0,0,0,0,0,0,2,0,2,0,0,6,0,37,0,0,0,0,0,0,0,0,0,0,0,0,0,0,-24,-17,-39,-39,-39,-25,-54,-50,-43,-52,-60,-60,-165,-42,-48,0,0,0,-59,-45,-72,0,0,0,-72,0]} 1. e4 {[%emt 0:0:0]} c5 {[%emt 0:0:0]} 2. Nf3 {[%emt 0:0:0]} d6 {[%emt 0:0:0]} 3. d4 {[%emt 0:0:0]} cxd4 {[%emt 0:0:0]} 4. Nxd4 {[%emt 0:0:0]} Nf6 {[%emt 0:0:0]} 5. Nc3 {[%emt 0:0:0]} a6 {[%emt 0:0:0]} 6. Bc4 {[%emt 0:0:0]} e6 {[%emt 0:0:0]} 7. Bb3 {[%emt 0:0:0]} b5 {[%emt 0:0:0]} 8. a3 {[%emt 0:0:0]} Be7 {[%emt 0:0:0]} 9. Qf3 $1 {[%emt 0:0:0][%mdl 4] is now more promising than 9.0-0. B87: Sicilian Scheveningen/Najdorf: 6 Bc4, with early ...b5.} Qc7 {[%emt 0:20:20]} 10. Qg3 {[%emt 0:0:0]} Nc6 {[%emt 0:16:0]} 11. Nxc6 {[%emt 0:0:0] The position is equal.} (11. Qxg7 $2 Rg8 $19 )Qxc6 {[%emt 0:0:31]} 12. O-O {[%emt 0:0:0]} Nh5 $146 {[%emt 0:11:38]} ({Predecessor:} 12... O-O 13. Bh6 Ne8 14. Nd5 Bd8 15. Bg5 Bxg5 16. Qxg5 Qc5 17. Ne7+ Kh8 18. Qxc5 dxc5 19. Nxc8 Rxc8 {0-1 Simoes,M (2044)-Santos,T (1487) Queima das Fitas op 2022 (4)} )13. Qd3 {[%emt 0:1:50]} Nf6 {[%emt 0:1:27] Dodges Nd5} 14. f4 {[%emt 0:2:56]} O-O {[%emt 0:16:57]} 15. f5 {[%emt 0:3:2]} Rb8 {[%emt 0:2:33]} 16. Kh1 {[%emt 0:22:47]} exf5 {[%emt 0:3:18]} 17. Bg5 {[%emt 0:3:50]} Re8 {[%emt 0:5:29]} 18. Rae1 {[%emt 0:18:8]} h6 {[%emt 0:3:26]} 19. Bxf6 {[%emt 0:7:25]} Bxf6 {[%emt 0:0:33]} 20. exf5 {[%emt 0:5:27]} Bb7 {[%emt 0:8:2][%csl Gb7][%cal Rc6g2] [#]} 21. Bd5 {[%emt 0:7:8] Active counter play!} Qc7 {[%emt 0:1:44]} 22. Bxb7 {[%emt 0:4:26]} Rxe1 {[%emt 0:0:59]} 23. Rxe1 {[%emt 0:0:36] Bd5 would now be deadly.} Bxc3 $40 {[%emt 0:0:42][%mdl 128] Black has some attack.} 24. bxc3 {[%emt 0:0:40]} Qxb7 $11 {[%emt 0:0:51][%mdl 4096] Endgame KQR-KQR} 25. f6 {[%emt 0:1:27]} Qc6 {[%emt 0:3:32]} 26. Qg3 {[%emt 0:2:57][%csl Gf6][%cal Rg3g7] [#]} g6 {[%emt 0:0:35]} 27. Re7 {[%emt 0:9:18]} Rc8 {[%emt 0:3:35]} 28. Qe3 {[%emt 0:6:6]} Qc4 {[%emt 0:0:43]} 29. Kg1 {[%emt 0:4:45] Dodges Qf1+} Qc5 {[%emt 0:0:45]} 30. h4 {[%emt 0:2:58]} h5 {[%emt 0:3:29]} 31. Qd4 {[%emt 0:5:14]} (31. Qxc5 $15 Rxc5 32. Re8+ Kh7 33. Ra8 )Qxd4+ {[%emt 0:3:54]} (31... Qxa3 $19 32. Qd2 Qc5+ (32... Qxc3 $2 33. Re8+ Rxe8 34. Qxc3 $18 )33. Kh1 Qc4 (33... Qxc3 $2 34. Re8+ Rxe8 35. Qxc3 $18 )34. Qxd6 Qxc3 (34... Qxh4+ 35. Kg1 $11 )35. Qxa6 Qc4 (35... Qxc2 36. Qxb5 Qc1+ 37. Kh2 $15 ))32. cxd4 $19 {[%emt 0:0:31] KR-KR} d5 {[%emt 0:0:45]} (32... Rxc2 $15 {feels stronger.} 33. Rd7 Ra2 )33. Rd7 $11 {[%emt 0:1:4]} Rxc2 {[%emt 0:0:43]} 34. Rd8+ {[%emt 0:0:47]} Kh7 {[%emt 0:0:31]} 35. Rd7 {[%emt 0:0:35]} Kg8 {[%emt 0:0:40]} 36. Rd8+ {[%emt 0:0:33]} Kh7 {[%emt 0:0:32]} 37. Rd7 $1 {[%emt 0:0:34]} Kg8 {[%emt 0:0:57] Weighted Error Value: White=0.11 (very precise) /Black=0.13 (very precise)   Mistake:       	White=1     	Black=3      Inaccurate:     	White=4     	Black=1      OK:         	White=4     	Black=6      Strong:       	White=1     	---} ({Black should try} 37... Ra2 $17 38. Rxd5 (38. Rxf7+ Kg8 $17 )Rxa3 )1/2-1/2

[Event "88th Tata Steel Masters 2026"]
[White "Niemann,Hans Moke"]
[Black "Abdusattorov,Nodirbek"]
[Site "Wijk aan Zee"]
[Round "5.4"]
[Annotator "TA"]
[Result "1/2-1/2"]
[Date "2026.01.21"]
[WhiteElo "2725"]
[BlackElo "2751"]
[PlyCount "95"]
[TimeControl "60"]

{[%evp 25,95,12,18,12,15,8,31,47,41,40,47,47,44,39,53,48,55,47,64,64,57,21,12,0,1,0,24,27,24,19,25,16,20,28,21,21,21,15,18,3,33,33,10,10,27,27,27,27,27,0,27,0,27,12,12,11,13,13,13,11,10,6,6,8,5,0,0,0,0,0,0,0]} 1. e4 {[%emt 0:0:0]} e5 {[%emt 0:0:0]} 2. Nf3 {[%emt 0:0:0]} Nf6 {[%emt 0:0:0]} 3. Nxe5 {[%emt 0:0:0]} d6 {[%emt 0:0:0][%cal Yd7d6,Yd6d5][%mdl 32]} 4. Nf3 {[%emt 0:0:0]} Nxe4 {[%emt 0:0:0]} 5. d4 {[%emt 0:0:0]} d5 {[%emt 0:0:0]} 6. Bd3 {[%emt 0:0:0]} Nc6 {[%emt 0:0:0]} 7. O-O {[%emt 0:0:0]} Be7 {[%emt 0:0:0]} 8. Re1 {[%emt 0:0:0]} Bg4 {[%emt 0:0:0]} 9. c4 {[%emt 0:15:10]} Nf6 {[%emt 0:0:0][%cal Ye4f6,Yf6d5,Yd5b4][%mdl 32]} 10. cxd5 {[%emt 0:1:19]} Bxf3 {[%emt 0:0:0]} 11. Qxf3 {[%emt 0:2:22]} Qxd5 {[%emt 0:0:0]} 12. Qxd5 {[%emt 0:23:57]} Nxd5 {[%emt 0:0:14]} 13. Nc3 {[%emt 0:1:28]} Ndb4 {[%emt 0:0:38] A dynamic duo of knights.} 14. Be4 {[%emt 0:1:22] [#] a3 is the strong threat. C42: Petroff Defence: 3 Nxe5 and unusual White 3rd moves.} Nxd4 {[%emt 0:0:36]} 15. Be3 {[%emt 0:0:47] White sacrificed a pawn} (15. Bxb7 Rb8 16. Be4 Ndc2 $15 )c5 {[%emt 0:0:34]} 16. Bxd4 {[%emt 0:6:40] White is slightly better.} cxd4 {[%emt 0:0:39] Black is weak on the light squares} 17. Nb5 {[%emt 0:0:35]} Kf8 {[%emt 0:20:34]} 18. Rad1 {[%emt 0:17:3]} (18. Bxb7 Rb8 19. Rec1 d3 $17 )Bf6 $146 {[%emt 0:9:12]} ({Predecessor:} 18... d3 19. a3 a6 20. Nc3 Nc2 21. Rf1 Rd8 22. Rxd3 Rxd3 23. Bxd3 Nd4 24. Be4 Nc6 {½-½ Sabean,S-Schlosser,R W-ch WS/H/077 email 2007} )19. Nxd4 {[%emt 0:2:47]} (19. Bxb7 Rb8 20. a3 (20. Nd6 $2 Be7 $19 )Nc2 $17 (20... Rxb7 21. Nd6 $11 ))Rd8 {[%emt 0:3:49]} 20. Nb5 {[%emt 0:0:59]} Rxd1 {[%emt 0:3:56]} 21. Rxd1 {[%emt 0:0:37]} Ke7 {[%emt 0:3:16] Prevents Rd7+} 22. Re1 {[%emt 0:3:27] White is more active.} (22. Nxa7 Ra8 23. Nb5 Rxa2 $11 )(22. Bxb7 $6 Rb8 23. Nd6 Nxa2 $11 )Bxb2 {[%emt 0:4:13]} 23. Re2 {[%emt 0:8:51]} Bc1 {[%emt 0:4:12]} 24. Re1 {[%emt 0:5:5][%mdl 1024] White has compensation.} (24. a3 $5 a6 $8 25. Bb1+ (25. Bxh7+ Kf6 $11 )(25. axb4 axb5 26. Bxb7+ Kf6 $11 )Kf6 26. Nd6 Bxa3 27. h4 $16 (27. Nxb7 Rc8 $17 ))Bd2 {[%emt 0:2:12]} 25. Re2 {[%emt 0:0:34]} Bc1 $1 {[%emt 0:0:35]} 26. a3 {[%emt 0:7:6]} a6 {[%emt 0:0:43]} 27. Bb1+ {[%emt 0:4:19]} Kf6 {[%emt 0:8:25][%cal Yh8d8] Threatens to win with ...Rd8!.} 28. Nd6 {[%emt 0:2:23]} Nc6 {[%emt 0:1:29]} 29. h4 {[%emt 0:1:31]} Bxa3 {[%emt 0:13:21]} 30. Ne8+ {[%emt 0:0:36]} ({Of course not} 30. Nxb7 $6 Rb8 31. Be4 Rxb7 $15 )Rxe8 {[%emt 0:0:31]} 31. Rxe8 $11 {[%emt 0:0:35][%mdl 4096] Endgame KRB-KBN} b6 {[%emt 0:1:1]} 32. Rc8 {[%emt 0:2:14]} Ne5 {[%emt 0:4:0]} 33. f4 {[%emt 0:0:46]} Bc5+ {[%emt 0:1:54]} 34. Kf1 {[%emt 0:1:16]} Ng4 {[%emt 0:1:35]} 35. Rc6+ {[%emt 0:1:15]} Ke7 {[%emt 0:0:31]} 36. Rc7+ {[%emt 0:0:36]} Kf6 $1 {[%emt 0:5:33]} 37. Rc6+ {[%emt 0:1:4]} Ke7 {[%emt 0:0:30]} 38. Rc7+ {[%emt 0:0:31]} Kf6 $1 {[%emt 0:0:55]} 39. Ba2 {[%emt 0:1:4]} Ne3+ {[%emt 0:1:12] The position is equal.} 40. Ke2 {[%emt 0:0:0]} Nxg2 {[%emt 0:0:0]} 41. Rxf7+ {[%emt 0:21:57]} Kg6 {[%emt 0:20:9]} 42. f5+ {[%emt 0:3:41]} Kh6 {[%emt 0:0:5]} 43. Kf3 {[%emt 0:1:8]} Nxh4+ {[%emt 0:0:33]} 44. Kg3 {[%emt 0:1:27]} Kh5 {[%emt 0:3:2]} 45. f6 {[%emt 0:2:27]} (45. Rxg7 $2 {is the wrong capture.} Nxf5+ 46. Kf4 Nxg7 $19 )gxf6 {[%emt 0:0:26]} 46. Rxh7+ {[%emt 0:0:34]} Kg5 {[%emt 0:0:1]} 47. Rg7+ {[%emt 0:0:33]} (47. Rxh4 $5 Bf2+ $8 48. Kxf2 Kxh4 49. Ke2 $11 )Kh6 {[%emt 0:0:23]} 48. Ra7 {[%emt 0:0:36] Weighted Error Value: White=0.04 (flawless) /Black=0.04 (flawless)   Inaccurate:     	White=1     	Black=1      OK:         	White=8     	Black=4      Best:        	---       	Black=3      Strong:       	---       	Black=3} 1/2-1/2